bitfinex/quotes_SOLUSD_20250922
["timestamp","ask_amount","ask_price","bid_price","bid_amount"]
[1758579474271,3.04875574,220.65,220.63,0.69]
[1758579474778,3.04875574,220.65,220.62,0.69]
[1758579475958,34.78,220.66,220.62,5.22266451]
[1758579476158,26.0,220.68,220.63,0.69]
[1758579476466,3.05002207,220.67,220.64,0.69]
[1758579476790,3.05002207,220.68,220.64,0.69]
[1758579477268,3.71002207,220.68,220.62,16.58436607]
[1758579477576,3.71002207,220.68,220.63,0.72]
[1758579477758,3.71002207,220.68,220.64,0.72]
[1758579477958,3.05002207,220.68,220.64,5.25226864]
[1758579478273,3.05002207,220.67,220.64,5.25226864]
[1758579478475,3.05002207,220.68,220.64,5.25226864]
[1758579478674,3.05002207,220.67,220.64,5.25226864]
[1758579478874,3.05002207,220.68,220.65,0.72]
[1758579479562,3.05002207,220.68,220.62,11.33170156]
[1758579479779,3.05002207,220.68,220.63,0.72]
[1758579479963,3.05002207,220.68,220.64,0.72]
[1758579480278,43.7629956,220.75,220.64,0.72]
[1758579480471,26.0,220.72,220.64,0.72]
[1758579480661,3.05114376,220.71,220.64,0.72]
[1758579480857,34.78,220.72,220.64,0.72]
[1758579481061,3.05114376,220.71,220.64,0.72]
[1758579481289,3.05114376,220.71,220.65,15.86222523]
[1758579481490,3.05114376,220.71,220.66,0.72]
[1758579482592,3.05114376,220.75,220.66,0.72]
[1758579482764,3.05114376,220.74,220.67,13.59559401]
[1758579482968,34.78,220.75,220.68,0.72]
[1758579483474,34.78,220.75,220.69,15.8593502]
[1758579483683,34.78,220.75,220.7,0.72]
[1758579483988,35.44,220.78,220.7,0.72]
[1758579484175,3.04855867,220.77,220.7,0.72]
[1758579484669,3.70855867,220.77,220.7,0.72]
[1758579485073,5.25919183,220.77,220.67,5.25148768]
[1758579485277,1.55063316,220.75,220.68,0.72]
[1758579485471,34.78,220.74,220.68,0.72]
[1758579485672,3.04855867,220.73,220.68,5.2512692]
[1758579485888,34.78,220.74,220.69,0.72]
[1758579486072,34.78,220.74,220.7,0.72]
[1758579486466,35.44,220.74,220.7,0.72]
[1758579486767,34.78,220.74,220.71,0.72]
[1758579487267,34.78,220.75,220.72,0.72]
[1758579487486,34.78,220.77,220.69,13.59559401]
[1758579487687,3.04560665,220.76,220.7,5.2510376]
[1758579487888,3.04560665,220.76,220.71,0.72]
[1758579488578,3.70560665,220.76,220.71,0.72]
[1758579488768,3.70560665,220.76,220.72,4.53062703]
[1758579489494,3.70560665,220.76,220.71,0.72]
[1758579489694,0.66,220.75,220.71,5.25083201]
[1758579490090,34.78,220.76,220.71,5.25083201]
[1758579490592,35.44,220.76,220.71,5.25083201]
[1758579491671,39.96981052,220.76,220.71,0.72]
[1758579491875,2.21063316,220.79,220.72,0.72]
[1758579492192,34.78,220.76,220.72,0.72]
[1758579492387,34.78,220.76,220.73,0.72]
[1758579492577,0.66,220.78,220.7,15.85863161]
[1758579492777,34.78,220.78,220.74,0.72]
[1758579492979,34.78,220.78,220.75,0.72]
[1758579493396,160.86,220.8,220.7,15.85863161]
[1758579493397,26.66,220.8,220.74,0.72]
[1758579493590,37.82349069,220.79,220.74,5.25005602]
[1758579493800,0.66,220.82,220.75,0.72]
[1758579493972,34.78,220.81,220.74,4.53005602]
[1758579494174,3.70360864,220.8,220.74,17.95067792]
[1758579494398,3.70360864,220.8,220.74,5.25005602]
[1758579494894,0.66,220.8,220.74,5.25005602]
[1758579495097,0.66,220.8,220.74,4.53005602]
[1758579495402,0.66,220.8,220.75,0.72]
[1758579495903,34.78,220.81,220.76,0.71]
[1758579496080,0.86,220.85,220.76,0.71]
[1758579496272,34.78,220.84,220.76,0.71]
[1758579497001,0.2,220.85,220.78,4.52939577]
[1758579497189,34.98,220.85,220.79,0.71]
[1758579498495,34.98,220.85,220.8,4.5289855]
[1758579498712,34.98,220.85,220.8,5.2389855]
[1758579499013,35.64,220.85,220.8,5.2389855]
[1758579499176,34.98,220.85,220.81,0.71]
[1758579499375,34.98,220.85,220.8,4.5289855]
[1758579499579,34.98,220.85,220.81,0.71]
[1758579499797,34.98,220.85,220.82,0.71]
[1758579500475,34.98,220.85,220.8,0.71]
[1758579500679,34.98,220.85,220.81,0.71]
[1758579501505,35.64,220.85,220.79,0.71]
[1758579501802,34.98,220.85,220.79,0.71]
[1758579502597,34.98,220.85,220.8,4.5289855]
[1758579502803,34.98,220.85,220.81,0.71]
[1758579502981,0.2,220.85,220.81,0.71]
[1758579504584,0.2,220.85,220.82,4.52857531]
[1758579504784,0.2,220.85,220.83,0.71]
[1758579506210,0.2,220.85,220.83,5.23836812]
[1758579509688,0.66,220.84,220.8,4.52897427]
[1758579510008,0.66,220.83,220.77,25.58944014]
[1758579510188,0.66,220.83,220.78,5.19920571]
[1758579510389,0.66,220.83,220.79,0.67]
[1758579510713,0.86,220.85,220.79,0.67]
[1758579512191,0.86,220.85,220.8,4.5289855]
[1758579512392,0.86,220.85,220.8,5.1989855]
[1758579512697,0.86,220.85,220.8,4.5289855]
[1758579512891,0.86,220.85,220.81,0.67]
[1758579513193,0.2,220.85,220.82,0.67]
[1758579513405,0.2,220.85,220.83,0.67]
[1758579514508,0.2,220.85,220.81,0.67]
[1758579514703,0.2,220.85,220.82,0.67]
[1758579515422,0.86,220.85,220.79,0.67]
[1758579516526,0.2,220.85,220.8,4.5289855]
[1758579516696,0.2,220.85,220.81,0.67]
[1758579517021,0.2,220.85,220.8,4.5289855]
[1758579517224,1.55063316,220.81,220.64,27.23]
[1758579517423,27.55063316,220.77,220.65,0.67]
[1758579517592,26.0,220.77,220.66,13.59559401]
[1758579517898,26.0,220.77,220.64,13.61254169]
[1758579517899,34.9,220.76,220.68,13.59559401]
[1758579518098,34.9,220.77,220.69,0.67]
[1758579518321,34.9,220.77,220.7,4.5310376]
[1758579518617,34.9,220.77,220.71,0.67]
[1758579519521,39.4296093,220.77,220.71,5.20079189]
[1758579519828,34.9,220.77,220.71,4.53079189]
[1758579520008,34.9,220.79,220.72,0.67]
[1758579521300,0.66,220.78,220.71,0.67]
[1758579522843,34.9,220.8,220.72,13.59559401]
[1758579522995,34.9,220.8,220.73,0.67]
[1758579523895,34.9,220.8,220.74,4.53021654]
[1758579526118,39.42916694,220.8,220.73,0.67]
[1758579526424,3.69990704,220.79,220.73,0.67]
[1758579527013,0.66,220.79,220.73,0.67]
[1758579527907,0.66,220.79,220.73,5.20034826]
[1758579529615,1.55063316,220.79,220.7,29.45422562]
[1758579529818,1.55063316,220.77,220.69,13.72172025]
[1758579530024,0.66,220.76,220.68,5.2012486]
[1758579530411,1.55063316,220.77,220.68,5.2012486]
[1758579530612,0.66,220.75,220.68,5.2012486]
[1758579530808,1.55063316,220.77,220.69,5.20116239]
[1758579531007,9.78182064,220.79,220.7,0.67]
[1758579531216,34.88,220.78,220.7,0.67]
[1758579531416,41.62000888,220.79,220.7,0.67]
[1758579531922,40.06937572,220.79,220.7,14.26559401]
[1758579532114,34.88,220.78,220.71,0.67]
[1758579534633,34.88,220.78,220.72,4.53062703]
[1758579534826,34.88,220.78,220.72,5.20062703]
[1758579539428,39.40953688,220.78,220.72,4.53062703]
[1758579539635,0.65,220.77,220.72,4.53062703]
[1758579539933,0.65,220.76,220.71,18.12642632]
[1758579540135,0.65,220.76,220.71,18.84642632]
[1758579540731,0.65,220.82,220.73,13.59559401]
[1758579540932,0.65,220.82,220.75,13.59559401]
[1758579541339,0.65,220.82,220.76,0.72]
[1758579541513,35.59,220.82,220.73,4.528184]
[1758579541718,3.69359931,220.81,220.73,0.72]
[1758579541919,3.69359931,220.81,220.74,4.53021654]
[1758579541920,4.5289855,220.8,220.74,4.53021654]
[1758579542120,5.1789855,220.8,220.74,4.53021654]
[1758579542417,5.1789855,220.8,220.71,4.53083231]
[1758579542418,0.65,220.79,220.71,4.53083231]
[1758579542626,0.65,220.78,220.71,4.53083231]
[1758579542834,0.65,220.78,220.71,5.25083231]
[1758579543539,0.65,220.77,220.71,4.53083231]
[1758579543838,0.65,220.78,220.71,5.25083231]
[1758579545620,5.17956045,220.78,220.71,5.25083231]
[1758579547644,5.17963651,220.77,220.71,0.72]
[1758579548147,40.15963651,220.77,220.69,14.48723515]
[1758579548441,0.65,220.76,220.7,0.72]
[1758579548815,5.17991681,220.76,220.7,5.25097391]
[1758579550142,34.98,220.77,220.7,4.53097391]
[1758579550440,34.98,220.77,220.71,0.72]
[1758579551345,34.98,220.77,220.71,5.25064462]
[1758579551547,34.98,220.77,220.72,0.72]
[1758579551731,0.65,220.77,220.72,0.72]
[1758579551933,38.0044,220.78,220.73,0.72]
[1758579552129,3.0444,220.77,220.74,0.72]
[1758579552947,5.17879144,220.81,220.75,0.72]
[1758579553151,8.22422082,220.81,220.75,0.72]
[1758579554054,3.04542938,220.81,220.76,4.52980612]
[1758579554242,3.04542938,220.82,220.77,0.72]
[1758579554444,3.04542938,220.82,220.78,0.72]
[1758579555049,3.04542938,220.82,220.78,5.24939329]
[1758579558137,3.04542938,220.81,220.78,5.24939329]
[1758579558339,3.04542938,220.82,220.78,5.24939329]
[1758579558548,3.04542938,220.81,220.78,5.24939329]
[1758579558754,3.04542938,220.82,220.78,5.24939329]
[1758579558931,3.04542938,220.81,220.78,5.24939329]
[1758579559133,3.04542938,220.82,220.78,5.24939329]
[1758579559333,3.04542938,220.81,220.78,5.24939329]
[1758579559544,3.04542938,220.82,220.78,5.24939329]
[1758579559732,3.04542938,220.81,220.78,5.24939329]
[1758579559932,3.04542938,220.82,220.78,5.24939329]
[1758579560240,3.04542938,220.81,220.78,5.24939329]
[1758579560438,3.04542938,220.8,220.78,5.24939329]
[1758579560742,3.04542938,220.82,220.78,5.24939329]
[1758579561054,3.04542938,220.81,220.78,5.24939329]
[1758579561259,3.04542938,220.8,220.79,0.66]
[1758579561554,37.96542938,220.84,220.79,0.66]
[1758579561737,3.04542938,220.83,220.79,0.66]
[1758579561938,3.04542938,220.82,220.8,0.66]
[1758579562141,3.04542938,220.81,220.8,0.66]
[1758579562338,3.04542938,220.83,220.8,0.66]
[1758579562542,3.04542938,220.82,220.8,0.66]
[1758579562744,3.04542938,220.81,220.8,5.1889855]
[1758579562936,3.04542938,220.83,220.8,5.1889855]
[1758579563152,3.04542938,220.82,220.8,5.1889855]
[1758579563359,3.04542938,220.81,220.8,5.1889855]
[1758579563533,3.04542938,220.83,220.8,5.1889855]
[1758579563752,3.04542938,220.82,220.8,5.1889855]
[1758579563935,3.04542938,220.81,220.8,5.1889855]
[1758579564135,3.04542938,220.83,220.8,5.1889855]
[1758579564335,3.04542938,220.82,220.8,5.1889855]
[1758579564656,3.04542938,220.81,220.77,4.52960094]
[1758579564835,3.04542938,220.83,220.77,15.85360329]
[1758579565149,3.04542938,220.82,220.78,0.66]
[1758579565334,3.04542938,220.83,220.78,0.66]
[1758579565525,3.04542938,220.82,220.78,0.66]
[1758579565729,3.04542938,220.83,220.78,0.66]
[1758579566042,3.04542938,220.82,220.78,0.66]
[1758579566249,3.04542938,220.83,220.78,0.66]
[1758579566452,3.04542938,220.82,220.78,0.66]
[1758579566756,3.04542938,220.83,220.79,4.52919063]
[1758579567134,3.04542938,220.83,220.8,0.66]
[1758579568061,3.04542938,220.83,220.81,0.71]
[1758579568260,3.04542938,220.83,220.79,0.71]
[1758579568453,3.04542938,220.83,220.8,0.71]
[1758579569055,3.04542938,220.83,220.8,5.23881896]
[1758579569355,135.06,220.85,220.74,11.32484421]
[1758579569356,26.0,220.79,220.74,11.32484421]
[1758579569654,2.41970356,220.76,220.74,11.32484421]
[1758579569859,38.04542938,220.75,220.67,0.71]
[1758579570034,2.41970356,220.73,220.67,0.71]
[1758579570230,3.07970356,220.73,220.67,0.71]
[1758579570443,6.12513294,220.73,220.67,0.71]
[1758579570642,3.07970356,220.73,220.67,0.71]
[1758579570856,6.12513294,220.73,220.67,0.71]
[1758579571043,4.53062703,220.72,220.61,26.0]
[1758579571238,4.53062703,220.72,220.62,0.71]
[1758579571239,35.68,220.71,220.62,0.71]
[1758579571444,35.68,220.71,220.63,13.59559401]
[1758579571648,2.41970356,220.66,220.63,14.30559401]
[1758579571860,2.41970356,220.66,220.64,0.71]
[1758579572062,2.41970356,220.66,220.65,0.71]
[1758579575942,2.41970356,220.66,220.63,14.24209699]
[1758579576137,6.9515722,220.66,220.6,0.71]
[1758579576342,2.41970356,220.61,220.6,0.71]
[1758579577856,2.41970356,220.61,220.6,27.57685529]
[1758579580744,2.41970356,220.61,220.6,13.27126128]
[1758579580944,2.41970356,220.61,220.58,0.91]
[1758579581140,2.41970356,220.61,220.59,0.71]
[1758579581361,2.41970356,220.61,220.59,13.92790207]
[1758579581563,6.9526316,220.61,220.58,0.2]
[1758579582153,0.66,220.6,220.58,0.2]
[1758579582359,4.53329706,220.59,220.58,0.2]
[1758579582573,5.19329706,220.59,220.58,0.2]
[1758579584051,7.61300062,220.59,220.57,0.2]
[1758579584254,2.41970356,220.58,220.57,0.2]
[1758579584456,6.95320614,220.58,220.57,0.2]
[1758579584656,7.61320614,220.58,220.57,0.2]
[1758579585478,5.19350258,220.58,220.57,0.2]
[1758579586077,40.35350258,220.58,220.57,0.2]
[1758579586781,42.77320614,220.58,220.57,0.2]
[1758579587160,28.41970356,220.56,220.55,0.2]
[1758579587561,29.07970356,220.56,220.55,0.2]
[1758579587974,26.66,220.56,220.55,0.2]
[1758579588383,29.07970356,220.56,220.55,0.2]
[1758579588684,68.75361723,220.56,220.55,0.2]
[1758579588860,66.33391367,220.56,220.55,0.2]
[1758579589457,68.75361723,220.56,220.54,0.2]
[1758579590284,33.61361723,220.56,220.54,0.2]
[1758579590492,35.14,220.55,220.54,0.2]
[1758579590985,40.33411924,220.55,220.54,0.2]
[1758579594603,41.88694213,220.55,220.54,0.2]
[1758579597281,4.53411924,220.55,220.54,0.2]
[1758579597467,65.63411924,220.55,220.54,0.2]
[1758579604798,67.18694213,220.55,220.54,0.2]
[1758579606300,67.84694213,220.55,220.54,0.2]
[1758579606996,67.84694213,220.55,220.54,1e-08]
[1758579607497,67.18694213,220.55,220.54,1e-08]
[1758579611809,4.53411924,220.55,220.54,0.67000001]
[1758579612002,39.55411924,220.55,220.54,0.67000001]
[1758579612493,39.55411924,220.55,220.54,1e-08]
[1758579612901,39.55411924,220.55,220.54,0.67000001]
[1758579615186,42.58247487,220.55,220.54,0.67000001]
[1758579616212,42.58247487,220.55,220.54,1e-08]
[1758579616711,42.58247487,220.55,220.54,0.70000001]
[1758579620098,42.58247487,220.55,220.54,1e-08]
[1758579620597,26.0,220.53,220.52,0.7]
[1758579620792,64.02835563,220.53,220.52,0.7]
[1758579623311,33.56288607,220.53,220.52,0.7]
[1758579623609,68.52288607,220.53,220.52,0.7]
[1758579625690,33.56288607,220.53,220.52,0.7]
[1758579625890,68.52288607,220.53,220.52,0.7]
[1758579627912,33.56288607,220.53,220.52,0.7]
[1758579628215,68.52288607,220.53,220.52,0.7]
[1758579629989,68.50288607,220.53,220.52,0.7]
[1758579631498,33.56288607,220.53,220.52,0.7]
[1758579631707,68.50288607,220.53,220.52,0.7]
[1758579632415,33.56288607,220.53,220.52,0.7]
[1758579632614,68.48288607,220.53,220.52,0.7]
[1758579632995,33.56288607,220.53,220.52,0.7]
[1758579633195,68.48288607,220.53,220.52,0.7]
[1758579636005,68.48288607,220.53,220.51,0.66]
[1758579636207,7.5630917,220.52,220.51,0.66]
[1758579636514,7.5630917,220.52,220.5,0.2]
[1758579636718,37.94835563,220.51,220.5,0.2]
[1758579638320,37.94835563,220.51,220.5,0.86]
[1758579638500,42.48329735,220.51,220.5,0.86]
[1758579638819,42.46329735,220.51,220.5,0.86]
[1758579639212,39.43494172,220.51,220.5,0.86]
[1758579639516,34.9,220.51,220.5,0.86]
[1758579639699,39.43494172,220.51,220.5,0.86]
[1758579640521,30.53472599,220.53,220.5,0.86]
[1758579640711,11.33529811,220.55,220.5,0.86]
[1758579640712,37.93041659,220.52,220.5,0.86]
[1758579641018,4.53427567,220.55,220.51,0.66]
[1758579641316,37.93036509,220.54,220.51,0.66]
[1758579641525,3.05036509,220.53,220.51,0.66]
[1758579641819,34.9,220.54,220.51,0.66]
[1758579642014,34.9,220.55,220.51,0.66]
[1758579642593,30.53380442,220.57,220.51,0.66]
[1758579642794,3.05008186,220.56,220.52,13.59559401]
[1758579643023,39.43309156,220.6,220.53,0.66]
[1758579643203,3.04882755,220.59,220.53,0.66]
[1758579643405,3.04882755,220.58,220.53,0.66]
[1758579643719,39.43309156,220.6,220.53,0.66]
[1758579643926,3.04899918,220.59,220.53,0.66]
[1758579644098,39.43309156,220.6,220.53,0.66]
[1758579644293,3.04762511,220.59,220.53,0.66]
[1758579644519,39.43309156,220.6,220.53,0.66]
[1758579644717,3.04761862,220.59,220.53,0.66]
[1758579644909,39.43309156,220.6,220.53,0.66]
[1758579645109,3.04761921,220.59,220.53,0.66]
[1758579645717,7.58100266,220.59,220.53,0.66]
[1758579647099,65.43300618,220.61,220.53,5.19450121]
[1758579647319,3.04761921,220.6,220.54,0.66]
[1758579648310,7.58073347,220.6,220.54,0.66]
[1758579649923,4.53311426,220.6,220.54,0.66]
[1758579650126,7.57508399,220.6,220.54,0.66]
[1758579651007,7.57454641,220.6,220.54,0.66]
[1758579651515,4.53311426,220.6,220.54,0.66]
[1758579651720,19.5666538,220.6,220.52,0.66]
[1758579652029,3.04081062,220.59,220.52,0.66]
[1758579652203,0.66,220.58,220.52,0.66]
[1758579653297,3.70081062,220.59,220.52,0.66]
[1758579653516,4.53350258,220.58,220.52,0.66]
[1758579654107,4.53330462,220.59,220.53,13.59559401]
[1758579654311,4.53330462,220.59,220.54,0.66]
[1758579654722,0.66,220.58,220.5,4.73498016]
[1758579655024,0.66,220.58,220.52,0.66]
[1758579656226,5.19369181,220.58,220.52,0.66]
[1758579657211,4.53369181,220.58,220.52,0.66]
[1758579657404,3.03992768,220.59,220.52,5.19472338]
[1758579657622,3.03992768,220.59,220.53,0.67]
[1758579657819,3.03992768,220.59,220.53,14.26559401]
[1758579658131,7.57303859,220.6,220.54,0.67]
[1758579658319,0.66,220.59,220.53,0.67]
[1758579659221,7.57303859,220.6,220.53,0.67]
[1758579659433,8.23303859,220.6,220.53,0.67]
[1758579660329,7.57303859,220.6,220.53,0.67]
[1758579661333,8.23303859,220.6,220.53,0.67]
[1758579666009,8.23303859,220.6,220.53,5.20447338]
[1758579666210,7.57303859,220.6,220.54,0.67]
[1758579666430,4.53311091,220.6,220.54,0.67]
[1758579667058,5.19311091,220.6,220.54,0.67]
[1758579668235,0.66,220.6,220.54,5.20429566]
[1758579668453,3.03992768,220.62,220.55,14.26559401]
[1758579668635,3.03992768,220.62,220.57,13.59559401]
[1758579668809,7.57203009,220.65,220.58,0.67]
[1758579669015,3.03992768,220.64,220.58,5.203398]
[1758579669339,7.57203009,220.65,220.59,0.67]
[1758579670141,8.23203009,220.65,220.59,0.67]
[1758579670326,5.19210241,220.65,220.56,13.59559401]
[1758579670534,0.66,220.64,220.57,0.67]
[1758579671918,5.19240664,220.64,220.57,0.67]
[1758579672119,4.53204787,220.66,220.57,5.2036604]
[1758579672319,5.19204787,220.66,220.58,0.67]
[1758579672846,7.5715912,220.67,220.59,13.59559401]
[1758579673030,7.5715912,220.67,220.6,0.67]
[1758579673232,4.53166352,220.67,220.6,0.67]
[1758579673442,5.19166352,220.67,220.6,0.67]
[1758579676042,18.94500775,220.67,220.57,14.26559401]
[1758579676234,0.66,220.66,220.57,14.26559401]
[1758579676424,0.66,220.65,220.57,14.26559401]
[1758579676634,0.66,220.64,220.57,14.26559401]
[1758579676832,0.66,220.64,220.59,13.59559401]
[1758579677033,5.19228273,220.64,220.59,13.59559401]
[1758579677254,5.19228273,220.64,220.59,0.67]
[1758579677762,30.5320446,220.66,220.6,0.67]
[1758579677964,4.5320446,220.66,220.6,0.67]
[1758579678455,0.66,220.65,220.58,13.59559401]
[1758579678650,3.08421023,220.64,220.55,26.67]
[1758579678944,0.66,220.63,220.55,26.67]
[1758579679149,0.66,220.62,220.55,26.67]
[1758579679347,0.66,220.61,220.55,26.67]
[1758579680326,5.19307944,220.61,220.55,0.67]
[1758579682451,18.94950489,220.61,220.52,0.67]
[1758579683856,18.94950489,220.61,220.51,0.67]
[1758579685052,4.53329706,220.59,220.51,0.67]
[1758579685241,0.66,220.58,220.51,0.67]
[1758579687559,4.53370811,220.57,220.51,0.67]
[1758579687750,5.19370811,220.57,220.51,0.67]
[1758579688154,5.19370811,220.57,220.5,13.79559401]
[1758579688155,16.5279784,220.57,220.5,13.79559401]
[1758579688354,0.66,220.56,220.5,13.79559401]
[1758579688660,0.66,220.55,220.5,13.79559401]
[1758579688958,0.66,220.55,220.5,0.9]
[1758579689554,4.53432483,220.54,220.5,0.9]
[1758579690059,5.19432483,220.54,220.5,0.9]
[1758579690251,4.53432483,220.54,220.51,0.7]
[1758579690756,4.53432483,220.54,220.5,0.2]
[1758579691145,4.53432483,220.54,220.5,0.9]
[1758579691347,4.53411924,220.55,220.5,0.9]
[1758579691647,5.19411924,220.55,220.5,0.9]
[1758579692747,0.66,220.54,220.5,0.2]
[1758579692948,0.66,220.53,220.5,0.2]
[1758579693150,15.86941735,220.55,220.5,0.2]
[1758579693331,16.52941735,220.55,220.51,0.7]
[1758579693532,0.66,220.54,220.5,0.2]
[1758579694372,5.19452264,220.54,220.5,0.2]
[1758579694538,0.66,220.53,220.5,0.2]
[1758579695564,5.19452264,220.54,220.5,0.9]
[1758579695769,5.19408785,220.56,220.51,0.7]
[1758579696356,4.53370811,220.57,220.51,0.7]
[1758579696644,0.66,220.56,220.51,0.7]
[1758579696840,5.19370811,220.57,220.52,0.7]
[1758579697578,0.66,220.56,220.5,5.43511204]
[1758579698385,15.86736588,220.58,220.5,4.73511204]
[1758579698666,26.66,220.57,220.51,0.7]
[1758579701074,31.19385983,220.57,220.51,0.7]
[1758579701380,26.0,220.57,220.51,5.23481343]
[1758579701558,26.66,220.57,220.52,0.7]
[1758579702074,0.66,220.56,220.52,0.7]
[1758579702763,0.66,220.56,220.52,5.23469431]
[1758579702965,26.0,220.57,220.52,5.23469431]
[1758579703156,26.66,220.57,220.52,5.23469431]
[1758579703674,26.66,220.57,220.52,4.53469431]
[1758579703878,26.66,220.57,220.53,0.7]
[1758579704185,26.66,220.57,220.51,4.53494172]
[1758579704353,26.66,220.57,220.51,5.23494172]
[1758579704554,0.66,220.61,220.52,14.29559401]
[1758579704771,3.037279,220.62,220.53,0.7]
[1758579704974,0.66,220.64,220.53,14.29559401]
[1758579705174,0.66,220.63,220.55,13.59559401]
[1758579705366,0.66,220.63,220.57,13.59559401]
[1758579705861,0.66,220.63,220.57,0.7]
[1758579706475,0.66,220.63,220.57,5.23359508]
[1758579706678,5.19252029,220.63,220.57,5.23359508]
[1758579707383,4.53252029,220.63,220.55,18.12960294]
[1758579707585,0.66,220.62,220.55,18.82960294]
[1758579707771,0.66,220.61,220.55,18.82960294]
[1758579708089,3.08421023,220.6,220.54,0.7]
[1758579708478,7.61748084,220.6,220.54,0.7]
[1758579710782,0.66,220.6,220.54,5.23431884]
[1758579711184,0.66,220.6,220.55,0.7]
[1758579711370,4.53268062,220.62,220.54,4.53431884]
[1758579711681,5.19268062,220.62,220.56,0.7]
[1758579717289,8.23208414,220.62,220.56,0.7]
[1758579718102,8.23208414,220.62,220.56,5.23390983]
[1758579718277,0.66,220.61,220.56,5.23390983]
[1758579718595,0.66,220.6,220.56,5.23390983]
[1758579718973,7.57208414,220.62,220.57,0.66]
[1758579719294,8.23208414,220.62,220.57,0.66]
[1758579719497,7.57208414,220.62,220.57,0.66]
[1758579719693,0.66,220.61,220.55,0.66]
[1758579721191,0.66,220.61,220.55,5.19399095]
[1758579721498,5.19291238,220.61,220.55,0.66]
[1758579721699,5.19291238,220.61,220.55,5.19405774]
[1758579724774,5.19291238,220.61,220.56,0.66]
[1758579725271,0.66,220.6,220.56,0.66]
[1758579727698,8.2323159,220.61,220.56,0.66]
[1758579728582,0.66,220.6,220.56,0.66]
[1758579729293,5.19314127,220.6,220.56,0.66]
[1758579730705,0.66,220.6,220.56,0.66]
[1758579730904,3.03940352,220.61,220.57,0.66]
[1758579731108,3.69940352,220.61,220.57,0.66]
[1758579731301,3.03940352,220.61,220.58,0.66]
[1758579731502,7.57228823,220.62,220.58,0.66]
[1758579731706,8.23228823,220.62,220.58,0.66]
[1758579732611,3.03940352,220.62,220.59,0.66]
[1758579732810,0.66,220.64,220.58,0.66]
[1758579732990,3.03940352,220.65,220.59,0.66]
[1758579733390,0.66,220.67,220.59,0.66]
[1758579734405,5.19169109,220.67,220.6,4.53309156]
[1758579734608,5.19169109,220.67,220.61,0.66]
[1758579736405,8.23109461,220.67,220.61,0.66]
[1758579736597,5.19169109,220.67,220.61,0.66]
[1758579738619,1.55115621,220.65,220.56,0.67]
[1758579738923,1.55115621,220.62,220.53,0.67]
[1758579739101,0.66,220.61,220.53,0.67]
[1758579739993,0.66,220.61,220.53,5.20447721]
[1758579740189,0.66,220.6,220.54,0.67]
[1758579741606,4.53323174,220.6,220.54,5.20426121]
[1758579741804,4.53323174,220.6,220.55,0.67]
[1758579742003,5.19323174,220.6,220.55,0.67]
[1758579743216,5.19323174,220.6,220.56,0.67]
[1758579743919,3.03965065,220.61,220.57,0.67]
[1758579744217,3.03965065,220.62,220.58,0.67]
[1758579744407,7.57214668,220.63,220.59,0.67]
[1758579745003,0.66,220.62,220.56,0.67]
[1758579745217,0.66,220.62,220.57,4.53370811]
[1758579745403,0.66,220.62,220.58,0.67]
[1758579745599,7.57214668,220.63,220.58,0.67]
[1758579745804,8.23214668,220.63,220.58,0.67]
[1758579746004,8.23214668,220.63,220.59,0.67]
[1758579746202,3.03965065,220.63,220.59,0.67]
[1758579746407,3.03965065,220.65,220.59,0.67]
[1758579746719,3.03965065,220.64,220.59,0.67]